[Event "56th Biel Festival MTO 2023"]
[White "Saraci,Nderim"]
[Black "Aryan Chopra"]
[Site "Biel"]
[Round "8.3"]
[Annotator "ChessBase"]
[Result "0-1"]
[Date "2023.07.26"]
[WhiteElo "2472"]
[BlackElo "2626"]
[PlyCount "102"]
[TimeControl "60"]

1. d4 {[%emt 0:0:0]} d5 {[%emt 0:0:0]} 2. Nf3 {[%emt 0:0:0]} Nf6 {[%emt 0:0:0]} 3. c4 {[%emt 0:0:0]} c6 {[%emt 0:0:0]} 4. cxd5 {[%emt 0:0:0]} cxd5 {[%emt 0:0:0]} 5. Nc3 {[%emt 0:0:0]} Nc6 {[%emt 0:0:0]} 6. Bf4 {[%emt 0:0:0]} a6 {[%emt 0:0:0]} 7. e3 {[%emt 0:3:38]} Bg4 {[%emt 0:0:0]} 8. Be2 {[%emt 0:2:7]} e6 {[%emt 0:0:0]} 9. O-O {[%emt 0:8:58]} Bd6 {[%emt 0:0:0]} 10. Bg3 {[%emt 0:6:48]} Bxf3 {[%emt 0:2:37]} 11. Bxf3 {[%emt 0:0:35]} Bxg3 {[%emt 0:0:26]} 12. hxg3 {[%emt 0:0:9]} O-O {[%emt 0:0:10]} 13. Rc1 {[%emt 0:0:14]} Rc8 {[%emt 0:4:34]} 14. Na4 {[%emt 0:1:55]} Nd7 {[%emt 0:7:32]} 15. Be2 {[%emt 0:11:26]} Qe7 {[%emt 0:5:54]} 16. Qd2 {[%emt 0:6:1]} Qb4 {[%emt 0:17:34]} 17. Qxb4 {[%emt 0:1:27]} Nxb4 {[%emt 0:0:3]} 18. a3 {[%emt 0:0:45]} Nc6 {[%emt 0:0:7]} 19. b4 {[%emt 0:5:57]} Rc7 {[%emt 0:8:58]} 20. Nc5 {[%emt 0:1:49]} Rfc8 {[%emt 0:0:41]} 21. Rb1 {[%emt 0:15:17]} Kf8 {[%emt 0:13:40]} 22. Nxb7 {[%emt 0:10:41]} Rxb7 {[%emt 0:0:4]} 23. Bxa6 {[%emt 0:0:9]} Rcb8 {[%emt 0:1:36]} 24. Bxb7 {[%emt 0:0:6]} Rxb7 {[%emt 0:0:2]} 25. Rfc1 {[%emt 0:0:42]} Na7 {[%emt 0:5:28]} 26. e4 {[%emt 0:4:26]} Ke7 {[%emt 0:11:1]} 27. exd5 {[%emt 0:1:48]} exd5 {[%emt 0:0:4]} 28. a4 {[%emt 0:0:28]} Nb6 {[%emt 0:1:41]} 29. Ra1 {[%emt 0:3:22]} Nc4 {[%emt 0:0:58]} 30. b5 {[%emt 0:0:7]} Kd7 {[%emt 0:3:13]} 31. Re1 {[%emt 0:2:52]} Nc8 {[%emt 0:1:1]} 32. a5 {[%emt 0:3:40]} Rxb5 {[%emt 0:1:9]} 33. a6 {[%emt 0:0:16]} Na7 {[%emt 0:7:26]} 34. Rab1 {[%emt 0:2:52]} Na3 {[%emt 0:0:28]} 35. Rxb5 {[%emt 0:1:3]} N3xb5 {[%emt 0:0:3]} 36. Rc1 {[%emt 0:2:34]} Kd6 {[%emt 0:0:22]} 37. Rd1 {[%emt 0:1:14]} Kc7 {[%emt 0:0:40]} 38. Ra1 {[%emt 0:3:49]} Kb6 {[%emt 0:0:37]} 39. Re1 {[%emt 0:1:23]} Nc6 {[%emt 0:0:20]} 40. Re8 {[%emt 0:1:2]} h5 {[%emt 0:4:41]} 41. Ra8 {[%emt 0:0:0]} g6 {[%emt 0:0:0]} 42. f3 {[%emt 0:0:0]} Nd6 {[%emt 0:0:0]} 43. Kf2 {[%emt 0:0:0]} Nxd4 {[%emt 0:0:0]} 44. g4 {[%emt 0:0:0]} hxg4 {[%emt 0:0:0]} 45. fxg4 {[%emt 0:0:0]} Ne6 {[%emt 0:0:0]} 46. Kf3 {[%emt 0:0:0]} Nc4 {[%emt 0:0:0]} 47. Kf2 {[%emt 0:0:0]} Ne5 {[%emt 0:0:0]} 48. Kg3 {[%emt 0:4:8]} d4 {[%emt 0:0:0]} 49. Kf2 {[%emt 0:0:44]} Nxg4+ {[%emt 0:2:41]} 50. Kf3 {[%emt 0:0:29]} Ne5+ {[%emt 0:0:37]} 51. Ke4 {[%emt 0:0:7]} Nd7 {[%emt 0:0:23]} 0-1

[Event "56th Biel Festival MTO 2023"]
[White "Albornoz Cabrera,Carlos Daniel"]
[Black "Rathanvel,V S"]
[Site "Biel"]
[Round "8.4"]
[Annotator "ChessBase"]
[Result "0-1"]
[Date "2023.07.26"]
[WhiteElo "2591"]
[BlackElo "2463"]
[PlyCount "80"]
[TimeControl "60"]

1. e4 {[%emt 0:0:0]} c5 {[%emt 0:0:0]} 2. Nf3 {[%emt 0:0:0]} d6 {[%emt 0:0:0]} 3. d4 {[%emt 0:0:0]} cxd4 {[%emt 0:0:0]} 4. Nxd4 {[%emt 0:0:0]} Nf6 {[%emt 0:0:0]} 5. Nc3 {[%emt 0:0:0]} a6 {[%emt 0:0:0]} 6. Bg5 {[%emt 0:0:0]} e6 {[%emt 0:0:0]} 7. f4 {[%emt 0:0:0]} Nbd7 {[%emt 0:0:0]} 8. Qe2 {[%emt 0:0:0]} Qc7 {[%emt 0:0:0]} 9. O-O-O {[%emt 0:0:0]} b5 {[%emt 0:0:0]} 10. a3 {[%emt 0:0:0]} Be7 {[%emt 0:0:0]} 11. Bxf6 {[%emt 0:0:0]} Nxf6 {[%emt 0:0:0]} 12. g4 {[%emt 0:0:0]} Nd7 {[%emt 0:0:0]} 13. g5 {[%emt 0:0:0]} Nb6 {[%emt 0:0:0]} 14. Bg2 {[%emt 0:0:0]} Bd7 {[%emt 0:0:0]} 15. Nf5 {[%emt 0:0:0]} exf5 {[%emt 0:20:16]} 16. exf5 {[%emt 0:0:0]} d5 {[%emt 0:1:15]} 17. f6 {[%emt 0:16:49]} gxf6 {[%emt 0:48:13]} 18. gxf6 {[%emt 0:0:20]} Qxf4+ {[%emt 0:0:17]} 19. Kb1 {[%emt 0:0:4]} Qxf6 {[%emt 0:0:12]} 20. Bxd5 {[%emt 0:2:59]} O-O-O {[%emt 0:2:9]} 21. Rhf1 {[%emt 0:5:52]} Qg5 {[%emt 0:3:20]} 22. h4 {[%emt 0:6:49]} Qxh4 {[%emt 0:2:45]} 23. Bh1 {[%emt 0:10:29]} Bg4 {[%emt 0:9:14]} 24. Qg2 {[%emt 0:17:2]} Rxd1+ {[%emt 0:0:23]} 25. Nxd1 {[%emt 0:0:4]} Kd8 {[%emt 0:9:5]} 26. Ne3 {[%emt 0:5:55]} h5 {[%emt 0:0:51]} 27. Qc6 {[%emt 0:13:47]} Nc8 {[%emt 0:0:10]} 28. Nd5 {[%emt 0:0:50]} Bd6 {[%emt 0:5:13]} 29. Nf6 {[%emt 0:8:17]} Be6 {[%emt 0:0:50]} 30. Bd5 {[%emt 0:3:14]} Qh3 {[%emt 0:0:13]} 31. Bxe6 {[%emt 0:1:26]} Qxe6 {[%emt 0:0:40]} 32. Qxa6 {[%emt 0:1:4]} h4 {[%emt 0:0:48]} 33. Qa5+ {[%emt 0:1:15]} Ke7 {[%emt 0:0:29]} 34. Qc3 {[%emt 0:4:24]} Be5 {[%emt 0:0:14]} 35. Qc5+ {[%emt 0:0:26]} Qd6 {[%emt 0:0:32]} 36. Qe3 {[%emt 0:1:5]} Qd4 {[%emt 0:0:14]} 37. Nd5+ {[%emt 0:0:56]} Qxd5 {[%emt 0:0:6]} 38. Qg5+ {[%emt 0:0:8]} Kf8 {[%emt 0:1:3]} 39. Re1 {[%emt 0:0:25]} f6 {[%emt 0:0:13]} 40. Qg4 {[%emt 0:0:51]} Ne7 {[%emt 0:0:13]} 0-1

[Event "56th Biel Festival MTO 2023"]
[White "Chasin,Nico"]
[Black "Pranav Anand"]
[Site "Biel"]
[Round "8.5"]
[Annotator "ChessBase"]
[Result "0-1"]
[Date "2023.07.26"]
[WhiteElo "2455"]
[BlackElo "2510"]
[PlyCount "98"]
[TimeControl "60"]

1. e4 {[%emt 0:0:0]} c5 {[%emt 0:0:0]} 2. Nf3 {[%emt 0:0:0]} Nc6 {[%emt 0:0:0]} 3. Bb5 {[%emt 0:0:0]} e6 {[%emt 0:0:0]} 4. O-O {[%emt 0:0:0]} Nge7 {[%emt 0:0:0]} 5. Re1 {[%emt 0:0:0]} b6 {[%emt 0:0:0]} 6. d4 {[%emt 0:4:12]} cxd4 {[%emt 0:0:0]} 7. Nxd4 {[%emt 0:6:12]} Nxd4 {[%emt 0:0:0]} 8. Qxd4 {[%emt 0:0:8]} a6 {[%emt 0:0:0]} 9. Bf1 {[%emt 0:2:5]} Nc6 {[%emt 0:0:0]} 10. Qc3 {[%emt 0:1:29]} Bb7 {[%emt 0:4:54]} 11. Qg3 {[%emt 0:3:42]} h5 {[%emt 0:7:32]} 12. Bg5 {[%emt 0:6:37]} h4 {[%emt 0:13:26]} 13. Bxd8 {[%emt 0:0:30]} hxg3 {[%emt 0:0:7]} 14. Bxb6 {[%emt 0:0:3]} Rxh2 {[%emt 0:2:2]} 15. Re3 {[%emt 0:3:30]} Bd6 {[%emt 0:5:4]} 16. fxg3 {[%emt 0:2:22]} Rh5 {[%emt 0:0:46]} 17. Nd2 {[%emt 0:0:43]} Ne5 {[%emt 0:9:42]} 18. Be2 {[%emt 0:10:48]} Rg5 {[%emt 0:4:34]} 19. Rd1 {[%emt 0:12:26]} Rc8 {[%emt 0:14:20]} 20. Rb3 {[%emt 0:3:37]} Rxc2 {[%emt 0:0:30]} 21. Be3 {[%emt 0:1:14]} Rxg3 {[%emt 0:0:2]} 22. Kf2 {[%emt 0:0:54]} Rxe3 {[%emt 0:0:20]} 23. Kxe3 {[%emt 0:0:6]} Bc6 {[%emt 0:5:35]} 24. Bxa6 {[%emt 0:6:58]} Ba4 {[%emt 0:7:13]} 25. Rb7 {[%emt 0:0:6]} Rc6 {[%emt 0:1:47]} 26. b3 {[%emt 0:4:18]} Rxa6 {[%emt 0:0:10]} 27. bxa4 {[%emt 0:0:6]} Rxa4 {[%emt 0:0:7]} 28. Rb2 {[%emt 0:0:44]} Bc5+ {[%emt 0:4:46]} 29. Ke2 {[%emt 0:0:54]} g5 {[%emt 0:0:58]} 30. Rc2 {[%emt 0:1:16]} Ba7 {[%emt 0:2:1]} 31. Rb1 {[%emt 0:2:3]} g4 {[%emt 0:1:20]} 32. Rb5 {[%emt 0:2:9]} f6 {[%emt 0:2:26]} 33. Rcb2 {[%emt 0:0:41]} Nc6 {[%emt 0:5:5]} 34. Rh5 {[%emt 0:7:26]} Ke7 {[%emt 0:1:25]} 35. Rh7+ {[%emt 0:3:31]} Kd6 {[%emt 0:0:25]} 36. Rf7 {[%emt 0:0:1]} Bc5 {[%emt 0:7:4]} 37. Kd1 {[%emt 0:1:33]} Be3 {[%emt 0:2:28]} 38. Rc2 {[%emt 0:0:54]} Rd4 {[%emt 0:2:5]} 39. Rxf6 {[%emt 0:4:30]} Nb4 {[%emt 0:0:33]} 40. Rb2 {[%emt 0:0:38]} Nd3 {[%emt 0:0:35]} 41. Rc2 {[%emt 0:30:13]} Nc5 {[%emt 0:0:0]} 42. Rg6 {[%emt 0:0:0]} Nxe4 {[%emt 0:0:0]} 43. Rxg4 {[%emt 0:0:0]} Nf2+ {[%emt 0:0:0]} 44. Ke2 {[%emt 0:0:0]} Nxg4 {[%emt 0:0:0]} 45. Nc4+ {[%emt 0:0:0]} Ke7 {[%emt 0:5:24]} 46. Nxe3 {[%emt 0:0:0]} Re4 {[%emt 0:0:4]} 47. Rc3 {[%emt 0:0:0]} d5 {[%emt 0:0:31]} 48. Kf3 {[%emt 0:0:0]} Ne5+ {[%emt 0:1:4]} 49. Kf2 {[%emt 0:0:0]} d4 {[%emt 0:0:43]} 0-1

[Event "56th Biel Festival MTO 2023"]
[White "Deuer,Marius"]
[Black "Peng,Xiongjian"]
[Site "Biel"]
[Round "8.6"]
[Annotator "ChessBase"]
[Result "0-1"]
[Date "2023.07.26"]
[WhiteElo "2374"]
[BlackElo "2489"]
[PlyCount "118"]
[TimeControl "60"]

1. d4 {[%emt 0:0:0]} d5 {[%emt 0:0:0]} 2. c4 {[%emt 0:0:0]} c6 {[%emt 0:0:0]} 3. Nf3 {[%emt 0:0:0]} Nf6 {[%emt 0:0:0]} 4. Qc2 {[%emt 0:0:0]} g6 {[%emt 0:0:0]} 5. Bf4 {[%emt 0:0:0]} dxc4 {[%emt 0:0:0]} 6. Qxc4 {[%emt 0:0:0]} Bg7 {[%emt 0:0:0]} 7. e3 {[%emt 0:8:19]} O-O {[%emt 0:0:0]} 8. Nbd2 {[%emt 0:6:37]} Nbd7 {[%emt 0:0:0]} 9. Be2 {[%emt 0:2:33]} Nh5 {[%emt 0:0:8]} 10. Be5 {[%emt 0:8:9]} Nxe5 {[%emt 0:2:54]} 11. Nxe5 {[%emt 0:8:26]} Nf6 {[%emt 0:13:40]} 12. O-O {[%emt 0:5:59]} Ne8 {[%emt 0:1:56]} 13. Ndf3 {[%emt 0:2:18]} Nd6 {[%emt 0:0:11]} 14. Qc2 {[%emt 0:0:13]} Be6 {[%emt 0:2:48]} 15. Rfd1 {[%emt 0:2:11]} Bd5 {[%emt 0:1:17]} 16. b3 {[%emt 0:1:41]} a5 {[%emt 0:3:35]} 17. a4 {[%emt 0:4:1]} f6 {[%emt 0:6:1]} 18. Nc4 {[%emt 0:3:49]} Kh8 {[%emt 0:0:10]} 19. Nxd6 {[%emt 0:6:29]} exd6 {[%emt 0:0:38]} 20. e4 {[%emt 0:4:18]} Bg8 {[%emt 0:1:12]} 21. Bc4 {[%emt 0:3:8]} d5 {[%emt 0:0:17]} 22. exd5 {[%emt 0:0:7]} cxd5 {[%emt 0:2:12]} 23. Bb5 {[%emt 0:2:56]} Rf7 {[%emt 0:2:26]} 24. Re1 {[%emt 0:2:6]} Rc7 {[%emt 0:0:50]} 25. Qd2 {[%emt 0:0:34]} Qf8 {[%emt 0:0:58]} 26. h4 {[%emt 0:2:40]} Bh6 {[%emt 0:8:3]} 27. Qe2 {[%emt 0:0:39]} Qc8 {[%emt 0:7:46]} 28. h5 {[%emt 0:4:52]} gxh5 {[%emt 0:0:55]} 29. g3 {[%emt 0:4:48]} Bf7 {[%emt 0:8:27]} 30. Kg2 {[%emt 0:3:10]} Qg4 {[%emt 0:0:58]} 31. Rh1 {[%emt 0:4:21]} Bg6 {[%emt 0:0:19]} 32. Rh4 {[%emt 0:2:10]} Qf5 {[%emt 0:0:11]} 33. Ne1 {[%emt 0:2:57]} Rc3 {[%emt 0:2:28]} 34. Rd1 {[%emt 0:1:20]} Bg5 {[%emt 0:0:18]} 35. Rxh5 {[%emt 0:3:4]} Bxh5 {[%emt 0:3:12]} 36. Qxh5 {[%emt 0:0:5]} Qg6 {[%emt 0:0:37]} 37. Qxg6 {[%emt 0:2:19]} hxg6 {[%emt 0:0:7]} 38. Nd3 {[%emt 0:0:58]} b6 {[%emt 0:3:14]} 39. b4 {[%emt 0:1:37]} Rc2 {[%emt 0:12:30]} 40. bxa5 {[%emt 0:0:22]} bxa5 {[%emt 0:0:6]} 41. Re1 {[%emt 0:0:0]} Rd2 {[%emt 0:0:0]} 42. Nc5 {[%emt 0:0:0]} Ra7 {[%emt 0:0:0]} 43. Re8+ {[%emt 0:1:35]} Kh7 {[%emt 0:0:0]} 44. Nd7 {[%emt 0:1:31]} f5 {[%emt 0:0:0]} 45. Nf8+ {[%emt 0:4:6]} Kg7 {[%emt 0:0:0]} 46. Ne6+ {[%emt 0:0:6]} Kf6 {[%emt 0:0:0]} 47. Kf1 {[%emt 0:4:23]} Rh7 {[%emt 0:0:0]} 48. Nc5 {[%emt 0:2:2]} Re7 {[%emt 0:2:13]} 49. Rxe7 {[%emt 0:4:23]} Kxe7 {[%emt 0:0:5]} 50. Nb3 {[%emt 0:0:4]} Rc2 {[%emt 0:1:14]} 51. Nxa5 {[%emt 0:1:31]} Bf6 {[%emt 0:0:6]} 52. f4 {[%emt 0:1:36]} Kd6 {[%emt 0:2:8]} 53. Nb7+ {[%emt 0:3:30]} Ke6 {[%emt 0:0:11]} 54. Nc5+ {[%emt 0:4:19]} Ke7 {[%emt 0:0:16]} 55. Nd3 {[%emt 0:0:35]} Rc3 {[%emt 0:2:13]} 56. Ne5 {[%emt 0:1:38]} Bxe5 {[%emt 0:0:47]} 57. dxe5 {[%emt 0:0:26]} Rxg3 {[%emt 0:0:8]} 58. a5 {[%emt 0:2:2]} Rb3 {[%emt 0:1:23]} 59. Bc6 {[%emt 0:1:26]} Ra3 {[%emt 0:0:6]} 0-1

[Event "56th Biel Festival MTO 2023"]
[White "Nguyen,Ngoc Truong Son"]
[Black "Sanchez Alvarez,Roberto Carlos"]
[Site "Biel"]
[Round "8.7"]
[Annotator "ChessBase"]
[Result "1-0"]
[Date "2023.07.26"]
[WhiteElo "2645"]
[BlackElo "2444"]
[PlyCount "121"]
[TimeControl "60"]

1. d4 {[%emt 0:0:0]} d5 {[%emt 0:0:0]} 2. c4 {[%emt 0:0:0]} e6 {[%emt 0:0:0]} 3. Nc3 {[%emt 0:0:0]} Nf6 {[%emt 0:0:0]} 4. cxd5 {[%emt 0:0:0]} exd5 {[%emt 0:0:0]} 5. Bg5 {[%emt 0:0:0]} c6 {[%emt 0:1:37]} 6. e3 {[%emt 0:0:0]} h6 {[%emt 0:0:8]} 7. Bh4 {[%emt 0:0:0]} Be7 {[%emt 0:0:13]} 8. Bd3 {[%emt 0:0:0]} O-O {[%emt 0:0:12]} 9. Qc2 {[%emt 0:0:0]} Re8 {[%emt 0:0:13]} 10. Bg3 {[%emt 0:0:0]} Nbd7 {[%emt 0:8:28]} 11. Nf3 {[%emt 0:0:0]} Nh5 {[%emt 0:3:29]} 12. O-O-O {[%emt 0:0:0]} Nxg3 {[%emt 0:6:42]} 13. hxg3 {[%emt 0:0:0]} Nf6 {[%emt 0:2:53]} 14. Kb1 {[%emt 0:0:0]} Bd6 {[%emt 0:5:28]} 15. Rh4 {[%emt 0:5:27]} Bg4 {[%emt 0:9:40]} 16. Rdh1 {[%emt 0:1:6]} Rc8 {[%emt 0:0:35]} 17. Bf5 {[%emt 0:2:12]} Bxf5 {[%emt 0:1:20]} 18. Qxf5 {[%emt 0:0:18]} Qd7 {[%emt 0:2:54]} 19. g4 {[%emt 0:17:54]} Qxf5+ {[%emt 0:0:18]} 20. gxf5 {[%emt 0:0:3]} Kf8 {[%emt 0:9:0]} 21. g4 {[%emt 0:2:19]} Nh7 {[%emt 0:2:48]} 22. Kc2 {[%emt 0:1:33]} f6 {[%emt 0:5:57]} 23. Kd3 {[%emt 0:0:24]} Ng5 {[%emt 0:2:59]} 24. Nxg5 {[%emt 0:0:15]} hxg5 {[%emt 0:2:45]} 25. Rh8+ {[%emt 0:0:24]} Kf7 {[%emt 0:0:10]} 26. Rxe8 {[%emt 0:0:20]} Rxe8 {[%emt 0:0:48]} 27. a3 {[%emt 0:0:6]} a5 {[%emt 0:6:44]} 28. Na4 {[%emt 0:6:55]} b5 {[%emt 0:2:27]} 29. Nc3 {[%emt 0:0:16]} Rd8 {[%emt 0:0:5]} 30. Rc1 {[%emt 0:1:41]} Ke7 {[%emt 0:5:45]} 31. a4 {[%emt 0:1:47]} b4 {[%emt 0:4:34]} 32. Nb1 {[%emt 0:1:27]} Kd7 {[%emt 0:6:13]} 33. Rh1 {[%emt 0:0:26]} c5 {[%emt 0:2:52]} 34. dxc5 {[%emt 0:0:14]} Be5 {[%emt 0:0:3]} 35. Nd2 {[%emt 0:1:4]} Bxb2 {[%emt 0:1:1]} 36. Nb3 {[%emt 0:0:21]} Rg8 {[%emt 0:0:42]} 37. f3 {[%emt 0:16:34]} Kc6 {[%emt 0:0:39]} 38. f4 {[%emt 0:11:34]} gxf4 {[%emt 0:2:50]} 39. exf4 {[%emt 0:0:3]} Re8 {[%emt 0:0:13]} 40. Rh2 {[%emt 0:0:17]} Bc3 {[%emt 0:0:31]} 41. Re2 {[%emt 0:30:13]} Rxe2 {[%emt 0:2:20]} 42. Kxe2 {[%emt 0:0:0]} Bb2 {[%emt 0:0:22]} 43. Kd3 {[%emt 0:0:0]} Bc3 {[%emt 0:1:46]} 44. Ke2 {[%emt 0:0:0]} Bb2 {[%emt 0:0:12]} 45. g5 {[%emt 0:0:0]} fxg5 {[%emt 0:4:52]} 46. fxg5 {[%emt 0:0:0]} Bc3 {[%emt 0:1:25]} 47. Ke3 {[%emt 0:0:0]} Bb2 {[%emt 0:1:16]} 48. Kd2 {[%emt 0:0:0]} Bc3+ {[%emt 0:0:25]} 49. Kc2 {[%emt 0:0:0]} Be5 {[%emt 0:7:20]} 50. Kd3 {[%emt 0:0:0]} Bf4 {[%emt 0:0:31]} 51. f6 {[%emt 0:0:0]} gxf6 {[%emt 0:0:20]} 52. g6 {[%emt 0:0:0]} Bh6 {[%emt 0:0:11]} 53. Kd4 {[%emt 0:0:0]} f5 {[%emt 0:6:31]} 54. Nxa5+ {[%emt 0:0:0]} Kc7 {[%emt 0:1:3]} 55. Kxd5 {[%emt 0:0:0]} Bg7 {[%emt 0:1:28]} 56. Nb3 {[%emt 0:0:0]} f4 {[%emt 0:1:47]} 57. Ke4 {[%emt 0:0:0]} Bh6 {[%emt 0:0:11]} 58. a5 {[%emt 0:0:0]} Kb7 {[%emt 0:0:12]} 59. Kf3 {[%emt 0:0:0]} Kc6 {[%emt 0:2:3]} 60. a6 {[%emt 0:0:0]} Kc7 {[%emt 0:0:23]} 61. Na5 {[%emt 0:0:0]} 1-0

[Event "56th Biel Festival MTO 2023"]
[White "Yuffa,Daniil"]
[Black "Harikrishnan.A.Ra"]
[Site "Biel"]
[Round "8.8"]
[Annotator "ChessBase"]
[Result "0-1"]
[Date "2023.07.26"]
[WhiteElo "2603"]
[BlackElo "2406"]
[PlyCount "114"]
[TimeControl "60"]

1. c4 {[%emt 0:0:0]} c6 {[%emt 0:0:0]} 2. d4 {[%emt 0:0:0]} d5 {[%emt 0:0:0]} 3. Nf3 {[%emt 0:0:0]} Nf6 {[%emt 0:0:0]} 4. Nc3 {[%emt 0:0:0]} dxc4 {[%emt 0:0:0]} 5. a4 {[%emt 0:0:0]} Bf5 {[%emt 0:0:0]} 6. Ne5 {[%emt 0:0:0]} Nbd7 {[%emt 0:0:0]} 7. Nxc4 {[%emt 0:0:0]} Qc7 {[%emt 0:0:0]} 8. g3 {[%emt 0:0:0]} e5 {[%emt 0:0:0]} 9. dxe5 {[%emt 0:0:0]} Nxe5 {[%emt 0:0:0]} 10. Bf4 {[%emt 0:0:0]} Nfd7 {[%emt 0:0:0]} 11. Bg2 {[%emt 0:0:0]} g5 {[%emt 0:0:0]} 12. Ne3 {[%emt 0:0:0]} gxf4 {[%emt 0:0:0]} 13. Nxf5 {[%emt 0:0:0]} fxg3 {[%emt 0:0:0]} 14. hxg3 {[%emt 0:0:0]} O-O-O {[%emt 0:0:0]} 15. Qc2 {[%emt 0:0:0]} Kb8 {[%emt 0:0:0]} 16. O-O-O {[%emt 0:5:7]} a5 {[%emt 0:0:0]} 17. Ne4 {[%emt 0:8:4]} Bb4 {[%emt 0:0:0]} 18. f4 {[%emt 0:6:22]} Ng4 {[%emt 0:0:0]} 19. Bf3 {[%emt 0:4:44]} Ndf6 {[%emt 0:10:22]} 20. Nxf6 {[%emt 0:11:40]} Nxf6 {[%emt 0:0:10]} 21. e4 {[%emt 0:0:24]} Nd7 {[%emt 0:21:32]} 22. e5 {[%emt 0:0:29]} Nc5 {[%emt 0:1:50]} 23. Kb1 {[%emt 0:19:18]} Ne6 {[%emt 0:4:21]} 24. Bh5 {[%emt 0:5:13]} Nc5 {[%emt 0:40:15]} 25. Nh6 {[%emt 0:18:45]} Rdf8 {[%emt 0:6:16]} 26. Ng4 {[%emt 0:8:55]} Rhg8 {[%emt 0:1:52]} 27. Rhg1 {[%emt 0:2:23]} Rd8 {[%emt 0:0:57]} 28. Ka2 {[%emt 0:1:44]} Qc8 {[%emt 0:3:14]} 29. Nf6 {[%emt 0:6:14]} Rxd1 {[%emt 0:1:43]} 30. Bxd1 {[%emt 0:0:24]} Qe6+ {[%emt 0:6:32]} 31. Kb1 {[%emt 0:0:5]} Rd8 {[%emt 0:0:32]} 32. Bg4 {[%emt 0:0:14]} Qe7 {[%emt 0:0:14]} 33. Rd1 {[%emt 0:0:37]} h6 {[%emt 0:0:21]} 34. Bf5 {[%emt 0:2:30]} Qc7 {[%emt 0:2:28]} 35. Kc1 {[%emt 0:0:35]} Qb6 {[%emt 0:1:7]} 36. Bg4 {[%emt 0:1:28]} Ka7 {[%emt 0:3:3]} 37. Bh5 {[%emt 0:2:22]} Rxd1+ {[%emt 0:1:26]} 38. Bxd1 {[%emt 0:1:3]} Be1 {[%emt 0:0:17]} 39. Qc4 {[%emt 0:0:25]} Bxg3 {[%emt 0:0:27]} 40. Nh5 {[%emt 0:0:20]} Bf2 {[%emt 0:0:41]} 41. Kb1 {[%emt 0:0:0]} Qd8 {[%emt 0:0:0]} 42. Qe2 {[%emt 0:0:0]} Qd4 {[%emt 0:0:0]} 43. Bc2 {[%emt 0:0:0]} Be3 {[%emt 0:0:0]} 44. Qe1 {[%emt 0:0:0]} Bd2 {[%emt 0:0:0]} 45. Qg3 {[%emt 0:0:0]} Na6 {[%emt 0:0:0]} 46. f5 {[%emt 0:1:59]} Nb4 {[%emt 0:0:0]} 47. Qg2 {[%emt 0:3:42]} Bg5 {[%emt 0:2:39]} 48. Qe2 {[%emt 0:0:46]} Qd5 {[%emt 0:1:2]} 49. b3 {[%emt 0:0:48]} Qd4 {[%emt 0:0:51]} 50. e6 {[%emt 0:0:26]} fxe6 {[%emt 0:0:15]} 51. fxe6 {[%emt 0:0:10]} Nd5 {[%emt 0:1:5]} 52. Qd3 {[%emt 0:0:16]} Nc3+ {[%emt 0:2:4]} 53. Ka1 {[%emt 0:0:27]} Qg1+ {[%emt 0:5:6]} 54. Bb1 {[%emt 0:1:23]} Qc5 {[%emt 0:2:55]} 55. Kb2 {[%emt 0:2:57]} Nb5 {[%emt 0:3:35]} 56. Ka1 {[%emt 0:3:31]} Qe5+ {[%emt 0:0:44]} 57. Ka2 {[%emt 0:0:5]} Nc3+ {[%emt 0:0:16]} 0-1

[Event "56th Biel Festival MTO 2023"]
[White "Huang,Renjie"]
[Black "Meshkovs,Nikita"]
[Site "Biel"]
[Round "8.9"]
[Annotator "ChessBase"]
[Result "1/2-1/2"]
[Date "2023.07.26"]
[WhiteElo "2445"]
[BlackElo "2565"]
[PlyCount "119"]
[TimeControl "60"]

1. e4 {[%emt 0:0:0]} c5 {[%emt 0:0:0]} 2. Nf3 {[%emt 0:0:0]} Nc6 {[%emt 0:0:0]} 3. Bb5 {[%emt 0:0:0]} g6 {[%emt 0:0:0]} 4. O-O {[%emt 0:0:0]} Bg7 {[%emt 0:0:0]} 5. c3 {[%emt 0:0:0]} Nf6 {[%emt 0:0:0]} 6. Re1 {[%emt 0:0:0]} O-O {[%emt 0:0:0]} 7. d4 {[%emt 0:0:0]} d5 {[%emt 0:0:0]} 8. e5 {[%emt 0:0:0]} Ne4 {[%emt 0:0:0]} 9. Be3 {[%emt 0:0:0]} Qb6 {[%emt 0:0:0]} 10. Bxc6 {[%emt 0:0:0]} bxc6 {[%emt 0:0:0]} 11. Qc1 {[%emt 0:0:0]} c4 {[%emt 0:0:0]} 12. Nbd2 {[%emt 0:0:0]} Nxd2 {[%emt 0:0:0]} 13. Nxd2 {[%emt 0:0:0]} Bf5 {[%emt 0:0:0]} 14. b3 {[%emt 0:0:0]} Bd3 {[%emt 0:0:0]} 15. bxc4 {[%emt 0:1:12]} dxc4 {[%emt 0:0:0]} 16. Qa3 {[%emt 0:4:27]} e6 {[%emt 0:6:47]} 17. d5 {[%emt 0:1:25]} Qb5 {[%emt 0:2:22]} 18. dxe6 {[%emt 0:1:32]} fxe6 {[%emt 0:0:28]} 19. Bc5 {[%emt 0:0:30]} Rfd8 {[%emt 0:38:52]} 20. Nf3 {[%emt 0:4:21]} Rd5 {[%emt 0:0:14]} 21. Bd6 {[%emt 0:0:11]} Bh6 {[%emt 0:13:47]} 22. Nd4 {[%emt 0:4:11]} Qb6 {[%emt 0:4:8]} 23. Qa4 {[%emt 0:7:46]} Bd2 {[%emt 0:6:48]} 24. Nxc6 {[%emt 0:2:1]} Bxe1 {[%emt 0:0:19]} 25. Rxe1 {[%emt 0:0:15]} Rb5 {[%emt 0:1:10]} 26. Nb4 {[%emt 0:3:59]} Rc8 {[%emt 0:11:30]} 27. Qd1 {[%emt 0:2:14]} a5 {[%emt 0:1:29]} 28. Nxd3 {[%emt 0:0:13]} cxd3 {[%emt 0:0:2]} 29. Qxd3 {[%emt 0:0:13]} Rb2 {[%emt 0:0:30]} 30. Rf1 {[%emt 0:1:48]} Rxa2 {[%emt 0:1:31]} 31. h4 {[%emt 0:0:21]} Qb3 {[%emt 0:4:0]} 32. Qa6 {[%emt 0:1:39]} Qxc3 {[%emt 0:5:39]} 33. Bc5 {[%emt 0:0:32]} Qxc5 {[%emt 0:1:49]} 34. Qxe6+ {[%emt 0:0:4]} Kg7 {[%emt 0:0:19]} 35. Qxa2 {[%emt 0:0:8]} Qxe5 {[%emt 0:0:7]} 36. g3 {[%emt 0:4:11]} Rf8 {[%emt 0:2:33]} 37. Qd2 {[%emt 0:0:25]} Rf7 {[%emt 0:1:6]} 38. Re1 {[%emt 0:0:18]} Qf6 {[%emt 0:0:2]} 39. Re4 {[%emt 0:1:2]} Qa1+ {[%emt 0:0:38]} 40. Kg2 {[%emt 0:1:4]} Qf6 {[%emt 0:0:15]} 41. Kg1 {[%emt 0:31:7]} Qa1+ {[%emt 0:33:50]} 42. Kh2 {[%emt 0:0:33]} Qf6 {[%emt 0:0:0]} 43. Rf4 {[%emt 0:0:0]} Qa1 {[%emt 0:0:0]} 44. Rc4 {[%emt 0:0:0]} Qf6 {[%emt 0:0:0]} 45. Kg1 {[%emt 0:0:0]} Qa1+ {[%emt 0:0:0]} 46. Rc1 {[%emt 0:0:0]} Qe5 {[%emt 0:0:0]} 47. Rc6 {[%emt 0:0:0]} Rf6 {[%emt 0:0:0]} 48. Rc2 {[%emt 0:0:0]} Rf7 {[%emt 0:0:0]} 49. Ra2 {[%emt 0:0:0]} Ra7 {[%emt 0:0:0]} 50. Ra4 {[%emt 0:0:0]} h5 {[%emt 0:0:0]} 51. Kh2 {[%emt 0:0:0]} Kh7 {[%emt 0:0:0]} 52. Rf4 {[%emt 0:0:0]} Kg7 {[%emt 0:0:0]} 53. Qa2 {[%emt 0:0:0]} Kh7 {[%emt 0:0:0]} 54. Qa3 {[%emt 0:0:0]} Qd5 {[%emt 0:0:0]} 55. Qf8 {[%emt 0:0:0]} a4 {[%emt 0:0:0]} 56. Qa3 {[%emt 0:0:0]} Qd7 {[%emt 0:0:0]} 57. Kg2 {[%emt 0:0:0]} Qd5+ {[%emt 0:0:0]} 58. Kh2 {[%emt 0:0:0]} Qd7 {[%emt 0:0:0]} 59. Kg2 {[%emt 0:0:0]} Qc6+ {[%emt 0:0:0]} 60. Kh2 {[%emt 0:0:0]} 1/2-1/2

[Event "56th Biel Festival MTO 2023"]
[White "Rodrigue-Lemieux,Shawn"]
[Black "Shlyakhtenko,Robert"]
[Site "Biel"]
[Round "8.10"]
[Annotator "ChessBase"]
[Result "0-1"]
[Date "2023.07.26"]
[WhiteElo "2495"]
[BlackElo "2401"]
[PlyCount "66"]
[TimeControl "60"]

1. a3 {[%emt 0:0:0]} d5 {[%emt 0:0:0]} 2. Nf3 {[%emt 0:0:0]} Nf6 {[%emt 0:0:0]} 3. d4 {[%emt 0:0:0]} Bf5 {[%emt 0:0:0]} 4. Bf4 {[%emt 0:0:0]} e6 {[%emt 0:0:0]} 5. e3 {[%emt 0:0:0]} Ne4 {[%emt 0:0:0]} 6. c4 {[%emt 0:3:29]} c6 {[%emt 0:1:31]} 7. Bd3 {[%emt 0:7:22]} Bd6 {[%emt 0:4:23]} 8. Bxd6 {[%emt 0:3:39]} Nxd6 {[%emt 0:0:53]} 9. Bxf5 {[%emt 0:0:44]} Nxf5 {[%emt 0:0:9]} 10. Nbd2 {[%emt 0:0:25]} Nd7 {[%emt 0:0:44]} 11. O-O {[%emt 0:3:22]} O-O {[%emt 0:0:26]} 12. b4 {[%emt 0:4:0]} a5 {[%emt 0:12:25]} 13. b5 {[%emt 0:0:30]} cxb5 {[%emt 0:7:32]} 14. cxd5 {[%emt 0:0:14]} exd5 {[%emt 0:0:7]} 15. Qb3 {[%emt 0:0:8]} Nf6 {[%emt 0:0:36]} 16. Qxb5 {[%emt 0:0:21]} Nd6 {[%emt 0:0:10]} 17. Qb3 {[%emt 0:1:28]} b5 {[%emt 0:1:55]} 18. Rfc1 {[%emt 0:0:8]} Qe7 {[%emt 0:12:19]} 19. Rc5 {[%emt 0:1:36]} Qb7 {[%emt 0:1:25]} 20. Ne5 {[%emt 0:8:26]} Rfc8 {[%emt 0:1:6]} 21. Rb1 {[%emt 0:6:40]} Rc7 {[%emt 0:2:5]} 22. f3 {[%emt 0:15:32]} h5 {[%emt 0:8:17]} 23. Rbc1 {[%emt 0:6:20]} Rac8 {[%emt 0:2:13]} 24. Qc3 {[%emt 0:3:57]} Rxc5 {[%emt 0:11:53]} 25. dxc5 {[%emt 0:0:8]} Nc4 {[%emt 0:0:8]} 26. Ndxc4 {[%emt 0:2:56]} dxc4 {[%emt 0:5:12]} 27. c6 {[%emt 0:0:46]} Qb6 {[%emt 0:0:51]} 28. Rd1 {[%emt 0:3:12]} Qc5 {[%emt 0:1:28]} 29. Kh1 {[%emt 0:15:15]} Nd5 {[%emt 0:6:29]} 30. Qxa5 {[%emt 0:1:27]} c3 {[%emt 0:0:36]} 31. e4 {[%emt 0:2:53]} Ne3 {[%emt 0:5:56]} 32. Qa6 {[%emt 0:2:23]} Re8 {[%emt 0:4:10]} 33. Nd3 {[%emt 0:0:24]} Rd8 {[%emt 0:1:12]} 0-1